fUSD/lending_fUSD_20260305
["ID","MTS","AMOUNT","RATE_DAILY","PERIOD"]
[407701195,1772690975842,-618.7,0.0004669,120]
[407701196,1772690975895,-618.7,0.0004669,120]
[407701197,1772690975949,-618.93887303,0.0004669,120]
[407701198,1772690976003,-500.0,0.0004669,120]
[407701199,1772690976055,-500.0,0.0004669,120]
[407701200,1772690976108,-500.0,0.0004669,120]
[407701201,1772690976160,-567.6,0.0004669,120]
[407701202,1772690976214,-500.0,0.0004669,120]
[407701203,1772690976266,-567.6,0.0004669,120]
[407701204,1772690976318,-537.85361084,0.0004669,120]
[407701205,1772690976369,-567.6,0.0004669,120]
[407701206,1772690976423,-567.6,0.0004669,120]
[407701207,1772690976475,-567.6,0.0004669,120]
[407701208,1772690976528,-567.6,0.0004669,120]
[407701209,1772690976578,-567.6,0.0004669,120]
[407701210,1772690976633,-567.6,0.0004669,120]
[407701211,1772690976685,-567.6,0.0004669,120]
[407701212,1772690976738,-567.6,0.0004669,120]
[407701213,1772690976790,-567.73551491,0.0004669,120]
[407701214,1772690976844,-562.57,0.0004669,120]
[407701215,1772690976895,-562.57,0.0004669,120]
[407701216,1772690976950,-562.57,0.0004669,120]
[407701217,1772690977002,-562.57,0.0004669,120]
[407701218,1772690977055,-562.57,0.0004669,120]
[407701219,1772690977107,-562.57,0.0004669,120]
[407701220,1772690977161,-562.57,0.0004669,120]
[407701221,1772690977214,-562.57,0.0004669,120]
[407701222,1772690977270,-562.57,0.0004669,120]
[407701223,1772690977323,-562.57,0.0004669,120]
[407701224,1772690977376,-562.78860813,0.0004669,120]
[407701225,1772690977430,-986.64,0.0004669,120]
[407701226,1772690977481,-986.64,0.0004669,120]
[407701227,1772690977535,-986.64,0.0004669,120]
[407701228,1772690977588,-986.64,0.0004669,120]
[407701229,1772690977639,-986.64,0.0004669,120]
[407701230,1772690977689,-986.64,0.0004669,120]
[407701231,1772690977742,-986.64,0.0004669,120]
[407701232,1772690977793,-986.64,0.0004669,120]
[407701233,1772690977843,-986.64,0.0004669,120]
[407701234,1772690977892,-547.88,0.0004669,120]
[407701235,1772690977942,-986.64,0.0004669,120]
[407701236,1772690977991,-547.88,0.0004669,120]
[407701237,1772690978042,-986.8489567,0.0004669,120]
[407701238,1772690978096,-547.88,0.0004669,120]
[407701239,1772690978151,-547.88,0.0004669,120]
[407701240,1772690978222,-547.88,0.0004669,120]
[407701241,1772690978275,-547.88,0.0004669,120]
[407701242,1772690978338,-547.88,0.0004669,120]
[407701243,1772690978398,-547.88,0.0004669,120]
[407701244,1772690978456,-547.88,0.0004669,120]
[407701245,1772690978519,-547.88,0.0004669,120]
[407701246,1772690978585,-548.10286115,0.0004669,120]
[407701247,1772690978640,-631.83,0.0004669,120]
[407701248,1772690978694,-631.83,0.0004669,120]
[407701249,1772690978753,-631.83,0.0004669,120]
[407701250,1772690978808,-631.83,0.0004669,120]
[407701251,1772690978867,-631.83,0.0004669,120]
[407701252,1772690979064,-631.83,0.0004669,120]
[407701253,1772690979117,-631.83,0.0004669,120]
[407701254,1772690979167,-631.83,0.0004669,120]
[407701255,1772690979220,-631.83,0.0004669,120]
[407701256,1772690979278,-631.83,0.0004669,120]
[407701257,1772690979333,-631.84024484,0.0004669,120]
[407701258,1772690979388,-438.76177817,0.0004669,120]
[407701259,1772690979441,-500.0,0.0004669,120]
[407701260,1772690979496,-618.49,0.0004669,120]
[407701261,1772690979554,-500.0,0.0004669,120]
[407701262,1772690979608,-383.86665311,0.0004669,120]
[407701263,1772690979662,-618.49,0.0004669,120]
[407701264,1772690979716,-618.49,0.0004669,120]
[407701265,1772690979771,-618.49,0.0004669,120]
[407701266,1772690979824,-618.49,0.0004669,120]
[407701267,1772690979876,-618.49,0.0004669,120]
[407701268,1772690979929,-618.49,0.0004669,120]
[407701269,1772690979982,-618.49,0.0004669,120]
[407701270,1772690980036,-618.49,0.0004669,120]
[407701271,1772690980090,-618.49,0.0004669,120]
[407701272,1772690980145,-618.66162858,0.0004669,120]
[407701273,1772690980202,-500.0,0.0004669,120]
[407701274,1772690980257,-500.0,0.0004669,120]
[407701275,1772690980311,-500.0,0.0004669,120]
[407701276,1772690980364,-500.0,0.0004669,120]
[407701277,1772690980417,-500.0,0.0004669,120]
[407701278,1772690980471,-500.0,0.0004669,120]
[407701279,1772690980524,-500.0,0.0004669,120]
[407701280,1772690980576,-500.0,0.0004669,120]
[407701281,1772690980632,-500.0,0.0004669,120]
[407701282,1772690980687,-500.0,0.0004669,120]
[407701283,1772690980744,-377.26679911,0.0004669,120]
[407701284,1772690980799,-518.34094894,0.0004669,120]
[407701285,1772690980852,-1238.28,0.0004669,120]
[407701286,1772690980906,-1238.28,0.0004669,120]
[407701287,1772690980963,-1238.28,0.0004669,120]
[407701288,1772690981018,-1238.28,0.0004669,120]
[407701289,1772690981071,-1238.28,0.0004669,120]
[407701290,1772690981125,-1238.28,0.0004669,120]
[407701291,1772690981179,-1238.28,0.0004669,120]
[407701292,1772690981239,-1238.28,0.0004669,120]
[407701293,1772690981300,-1238.28,0.0004669,120]
[407701294,1772690981356,-1238.28,0.0004669,120]
[407701295,1772690981408,-1238.51070492,0.0004669,120]
[407701296,1772690981459,-1324.72,0.0004669,120]
[407701297,1772690981510,-1324.72,0.0004669,120]
[407701298,1772690981559,-1324.72,0.0004669,120]
[407701299,1772690981607,-1324.72,0.0004669,120]
[407701300,1772690981658,-1324.72,0.0004669,120]
[407701301,1772690981709,-1324.72,0.0004669,120]
[407701302,1772690981762,-1324.72,0.0004669,120]
[407701303,1772690981811,-1324.72,0.0004669,120]
[407701304,1772690981860,-1324.72,0.0004669,120]
[407701305,1772690981909,-1324.72,0.0004669,120]
[407701306,1772690981958,-1324.84235991,0.0004669,120]
[407701307,1772690982009,-1072.44,0.0004669,120]
[407701308,1772690982056,-1072.44,0.0004669,120]
[407701309,1772690982103,-1072.44,0.0004669,120]
[407701310,1772690982152,-1072.44,0.0004669,120]
[407701311,1772690982202,-1072.44,0.0004669,120]
[407701312,1772690982257,-1072.44,0.0004669,120]
[407701313,1772690982306,-1072.44,0.0004669,120]
[407701314,1772690982354,-1072.44,0.0004669,120]
[407701315,1772690982403,-1072.44,0.0004669,120]
[407701316,1772690982456,-1072.44,0.0004669,120]
[407701317,1772690982504,-1072.65503095,0.0004669,120]
[407701318,1772690982555,-627.78,0.0004669,120]
[407701319,1772690982604,-627.78,0.0004669,120]
[407701320,1772690982654,-627.78,0.0004669,120]
[407701321,1772690982704,-627.78,0.0004669,120]
[407701322,1772690982756,-627.78,0.0004669,120]
[407701323,1772690982804,-627.78,0.0004669,120]
[407701324,1772690982853,-627.78,0.0004669,120]
[407701325,1772690982904,-627.78,0.0004669,120]
[407701326,1772690982952,-627.78,0.0004669,120]
[407701327,1772690983001,-627.78,0.0004669,120]
[407701328,1772690983049,-627.81688253,0.0004669,120]
[407701329,1772690983098,-500.0,0.0004669,120]
[407701330,1772690983151,-602.32411255,0.0004669,120]
[407701331,1772690983202,-500.0,0.0004669,120]
[407701332,1772690983252,-500.0,0.0004669,120]
[407701333,1772690983305,-500.0,0.0004669,120]
[407701334,1772690983366,-500.0,0.0004669,120]
[407701335,1772690983423,-325.68956073,0.0004669,120]
[407701336,1772690983477,-500.0,0.0004669,120]
[407701337,1772690983530,-500.0,0.0004669,120]
[407701338,1772690983584,-500.0,0.0004669,120]
[407701339,1772690983640,-500.0,0.0004669,120]
[407701340,1772690983694,-500.0,0.0004669,120]
[407701341,1772690983750,-500.0,0.0004669,120]
[407701342,1772690983804,-500.0,0.0004669,120]
[407701343,1772690983857,-500.0,0.0004669,120]
[407701344,1772690983911,-500.0,0.0004669,120]
[407701345,1772690983966,-398.19167785,0.0004669,120]
[407701346,1772690984019,-500.0,0.0004669,120]
[407701347,1772690984072,-500.0,0.0004669,120]
[407701348,1772690984305,-500.0,0.0004669,120]
[407701349,1772690984359,-500.0,0.0004669,120]
[407701350,1772690984413,-513.16658725,0.0004669,120]
[407701351,1772690984465,-500.0,0.0004669,120]
[407701352,1772690984520,-500.0,0.0004669,120]
[407701353,1772690984571,-500.0,0.0004669,120]
[407701354,1772690984625,-500.0,0.0004669,120]
[407701355,1772690984681,-592.21792896,0.0004669,120]
[407701356,1772690984736,-584.47,0.0004669,120]
[407701357,1772690984791,-584.47,0.0004669,120]
[407701358,1772690984847,-584.47,0.0004669,120]
[407701359,1772690984901,-584.47,0.0004669,120]
[407701360,1772690984954,-584.47,0.0004669,120]
[407701361,1772690985006,-584.47,0.0004669,120]
[407701362,1772690985058,-584.47,0.0004669,120]
[407701363,1772690985110,-584.47,0.0004669,120]
[407701364,1772690985161,-584.47,0.0004669,120]
[407701365,1772690985213,-584.47,0.0004669,120]
[407701366,1772690985265,-584.6037783,0.0004669,120]
[407701367,1772690985319,-572.67,0.0004669,120]
[407701368,1772690985371,-572.67,0.0004669,120]
[407701369,1772690985424,-572.67,0.0004669,120]
[407701370,1772690985477,-572.67,0.0004669,120]
[407701371,1772690985530,-572.67,0.0004669,120]
[407701372,1772690985585,-572.67,0.0004669,120]
[407701373,1772690985640,-572.67,0.0004669,120]
[407701374,1772690985696,-572.67,0.0004669,120]
[407701375,1772690985751,-572.67,0.0004669,120]
[407701376,1772690985805,-572.67,0.0004669,120]
[407701377,1772690985858,-572.88548222,0.0004669,120]
[407701378,1772690985911,-500.0,0.0004669,120]
[407701379,1772690985965,-621.88130527,0.0004669,120]
[407701380,1772690986019,-500.0,0.0004669,120]
[407701381,1772690986071,-500.0,0.0004669,120]
[407701382,1772690986123,-500.0,0.0004669,120]
[407701383,1772690986175,-500.0,0.0004669,120]
[407701384,1772690986227,-500.0,0.0004669,120]
[407701385,1772690986283,-492.4807999,0.0004669,120]
[407701386,1772690986334,-1481.38572885,0.0004669,30]
[407701387,1772690986384,-500.0,0.0004669,30]
[407701388,1772690986438,-612.33245935,0.0004669,30]
[407701389,1772690986494,-256.77431483,0.00046724,30]
[407701390,1772690986551,-150.0,0.00046727,30]
[407701391,1772690986604,-150.0,0.0004675,30]
[407701392,1772690986656,-256.77431483,0.00046776,30]
[407701393,1772690986707,-256.77431483,0.00046827,30]
[407701394,1772690986759,-1042.0,0.00046835,60]
[407701395,1772690986810,-695.31092779,0.00046835,60]
[407701396,1772690986863,-609.66543331,0.00046835,60]
[407701397,1772690986918,-460.0,0.00046835,60]
[407701398,1772690986979,-150.0,0.00046865,30]
[407701399,1772690987051,-256.77431483,0.00046879,30]
[407701400,1772690987102,-7599.39029077,0.00046888,120]
[407701401,1772690987157,-150.0,0.00046892,30]
[407701402,1772690987216,-159.0,0.000469,120]
[407701403,1772690987273,-150.0,0.0004692,30]
[407701404,1772690987325,-256.77431483,0.0004693,30]
[407701405,1772690987378,-256.77431483,0.00046982,30]
[407701406,1772690987429,-1496.0,0.00047,120]
[407701407,1772690987479,-150.0,0.00047003,30]
[407701408,1772690987532,-500.0,0.00047027,120]
[407701409,1772690987585,-200.0,0.00047027,120]
[407701410,1772690987636,-256.77431483,0.00047033,30]
[407701411,1772690987688,-150.0,0.00047033,30]
[407701412,1772690987740,-256.77431483,0.00047085,30]
[407701413,1772690987792,-256.77431483,0.00047136,30]
[407701414,1772690987845,-150.0,0.00047141,30]
[407701415,1772690987904,-150.0,0.00047175,30]
[407701416,1772690987961,-5870.0,0.00047178,60]
[407701417,1772690988013,-256.77431483,0.00047188,30]
[407701418,1772690988064,-256.77431483,0.00047239,30]
[407701419,1772690988118,-150.0,0.00047278,30]
[407701420,1772690988171,-256.77431483,0.00047291,30]
[407701421,1772690988231,-150.0,0.00047317,30]
[407701422,1772690988288,-256.77431483,0.00047342,30]
[407701423,1772690988343,-256.77431483,0.00047394,30]
[407701424,1772690988396,-469.02,0.000474,90]
[407701425,1772690988450,-150.0,0.00047416,30]
[407701426,1772690988506,-150.0,0.0004743,30]
[407701427,1772690988566,-256.77431483,0.00047445,30]
[407701428,1772690988619,-150.0,0.00047458,30]
[407701429,1772690988675,-256.77431483,0.00047497,30]
[407701430,1772690988730,-214.78069403,0.000475,120]
[407701431,1772690988782,-1098.52918603,0.00047539,60]
[407701432,1772690988835,-256.77431483,0.00047548,30]
[407701433,1772690988888,-150.0,0.00047554,30]
[407701434,1772690988944,-150.0,0.000476,83]
[407701435,1772690988998,-256.77431483,0.000476,30]
[407701436,1772690989051,-150.0,0.000476,30]
[407701437,1772690989105,-256.77431483,0.00047652,30]
[407701438,1772690989163,-150.0,0.00047692,30]
[407701439,1772690989217,-256.77431483,0.00047703,30]
[407701440,1772690989271,-150.0,0.00047742,30]
[407701441,1772690989487,-256.77431483,0.00047755,30]
[407701442,1772690989547,-189.72,0.000478,120]
[407701443,1772690989601,-1995.98,0.000478,120]
[407701444,1772690989655,-256.77431483,0.00047806,30]
[407701445,1772690989714,-150.0,0.0004783,30]
[407701446,1772690989766,-256.77431483,0.00047858,30]
[407701447,1772690989818,-150.0,0.00047883,30]
[407701448,1772690989872,-366.7191,0.000479,90]
[407701449,1772690989925,-256.77431483,0.00047909,30]
[407701450,1772690989979,-397.16,0.00047914,120]
[407701451,1772690990031,-150.0,0.0004794,30]
[407701452,1772690990092,-256.77431483,0.00047961,30]
[407701453,1772690990150,-150.0,0.00047968,30]
[407701454,1772690990208,-166.46947267,0.00048,120]
[407701455,1772690990265,-410.55905394,0.00048,120]
[407701456,1772690990321,-199.0,0.00048,30]
[407701457,1772690990374,-394.0,0.00048,30]
[407701458,1772690990428,-350.0,0.00048,120]
[407701459,1772690990484,-356.0,0.00048,30]
[407701460,1772690990537,-256.77431483,0.00048012,30]
[407701461,1772690990597,-150.0,0.00048025,30]
[407701462,1772690990653,-256.77431483,0.00048064,30]
[407701463,1772690990707,-302.0,0.00048104,120]
[407701464,1772690990764,-150.0,0.00048105,30]
[407701465,1772690990817,-256.77431483,0.00048115,30]
[407701466,1772690990872,-199.0,0.00048119,120]
[407701467,1772690990926,-256.77431483,0.00048167,30]
[407701468,1772690990981,-150.0,0.00048167,30]
[407701469,1772690991038,-256.77431483,0.00048218,30]
[407701470,1772690991096,-150.0,0.00048243,30]
[407701471,1772690991149,-256.77431483,0.0004827,30]
[407701472,1772690991202,-150.0,0.00048308,30]
[407701473,1772690991253,-256.77431483,0.00048321,30]
[407701474,1772690991305,-1375.58090673,0.00048336,31]
[407701475,1772690991356,-256.77431483,0.00048373,30]
[407701476,1772690991407,-150.0,0.00048381,30]
[407701477,1772690991458,-256.77431483,0.00048424,30]
[407701478,1772690991510,-150.0,0.0004845,30]
[407701479,1772690991568,-150.0,0.0004845,30]
[407701480,1772690991622,-150.0,0.0004845,30]
[407701481,1772690991676,-256.77431483,0.00048476,30]
[407701482,1772690991731,-500.0,0.00048493,120]
[407701483,1772690991788,-929.55,0.000485,120]
[407701484,1772690991840,-1561.0,0.000485,120]
[407701485,1772690991897,-150.0,0.00048519,30]
[407701486,1772690991955,-256.77431483,0.00048527,30]
[407701487,1772690992008,-1042.4,0.00048533,120]
[407701488,1772690992069,-5870.0,0.00048552,60]
[407701489,1772690992126,-256.77431483,0.00048579,30]
[407701490,1772690992179,-150.0,0.00048592,30]
[407701491,1772690992231,-150.0,0.000486,86]
[407701492,1772690992285,-846.0,0.00048615,31]
[407701493,1772690992338,-256.77431483,0.0004863,30]
[407701494,1772690992392,-150.0,0.00048657,30]
[407701495,1772690992446,-256.77431483,0.00048682,30]
[407701496,1772690992500,-154.0,0.000487,120]
[407701497,1772690992556,-256.77431483,0.00048733,30]
[407701498,1772690992607,-150.0,0.00048733,30]
[407701499,1772690992658,-662.13,0.00048767,30]
[407701500,1772690992709,-662.13,0.00048767,30]
[407701501,1772690992763,-662.13,0.00048767,30]
[407701502,1772690992814,-662.13,0.00048767,30]
[407701503,1772690992865,-256.77431483,0.00048785,30]
[407701504,1772690992917,-150.0,0.00048795,30]
[407701505,1772690992975,-19850.59954449,0.000488,120]
[407701506,1772690993026,-97352.36425246,0.000488,120]
[407701507,1772690993077,-205000.0,0.000488,120]
[407701508,1772690993128,-256.77431483,0.00048836,30]
[407701509,1772690993180,-150.0,0.00048875,30]
[407701510,1772690993236,-256.77431483,0.00048888,30]
[407701511,1772690993291,-4325.914998,0.0004889,30]
[407701512,1772690993345,-179.68006308,0.00048899,120]
[407701513,1772690993399,-3000.0,0.000489,30]
[407701514,1772690993456,-49327.56694171,0.00048901,120]
[407701515,1772690995781,-194.39,0.00020749,3]
[407701516,1772690995811,-1200.0,0.00020758,2]
[407701517,1772690995838,-275.0,0.00020758,2]
[407701518,1772690995866,-300.0,0.00020758,2]
[407701519,1772690995895,-1061.23,0.00020758,2]
[407701520,1772690995932,-3938.77,0.00020758,2]
[407701521,1772690998031,-500.30777449,0.00016973,2]
[407701522,1772690998041,-500.82420992,0.00016973,2]
[407701523,1772690998051,-500.65533715,0.00016973,2]
[407701524,1772690998060,-300.0,0.00020757,2]
[407701525,1772690998069,-6895.16190939,0.00020759,2]
[407701526,1772690998084,-10000.01,0.00020759,2]
[407701527,1772690998097,-10000.01,0.00020759,2]
[407701528,1772690998112,-10000.01,0.00020759,2]
[407701529,1772690998127,-10000.01,0.00020759,2]
[407701530,1772690998454,-10000.01,0.00020759,2]
[407701531,1772690998473,-10000.01,0.00020759,2]
[407701532,1772690998489,-4085.83665811,0.00020759,2]
[407701533,1772690998499,-5914.17334189,0.00020759,2]
[407701534,1772690998519,-10000.01,0.00020759,2]
[407701535,1772690998544,-10000.01,0.00020759,2]
[407701536,1772690998563,-10000.01,0.00020759,2]
[407701537,1772690998583,-10000.01,0.00020759,2]
[407701538,1772690998603,-10000.01,0.00020759,2]
[407701539,1772690998621,-10000.01,0.00020759,2]
[407701540,1772691008115,500.70738406,0.00016973,2]
[407701541,1772691009370,503.13118984,0.00016973,2]
[407701542,1772691009474,500.83142573,0.00016973,2]
[407701543,1772691009876,165.98720503,0.00016973,2]
[407701544,1772691010027,600.66664765,0.00016973,2]
[407701545,1772691010162,501.08912633,0.00016973,2]
[407701546,1772691014577,2227.59702136,7.945e-05,2]
[407701547,1772691014604,5000.01,7.945e-05,2]
[407701548,1772691014626,5000.01,7.945e-05,2]
[407701549,1772691014647,5000.01,7.945e-05,2]
[407701550,1772691014669,5000.01,7.945e-05,2]
[407701551,1772691014691,5000.01,7.945e-05,2]
[407701552,1772691014712,2772.38297864,7.945e-05,2]
[407701553,1772691024603,502.00003,0.00014,2]
[407701554,1772691028278,218.61,0.0001202,2]
[407701555,1772691028551,218.61,0.0001202,2]
[407701556,1772691028838,218.61,0.0001202,2]
[407701557,1772691029107,218.61,0.0001202,2]
[407701558,1772691029413,218.61,0.0001202,7]
[407701566,1772691031682,-150.0,0.00019178,2]
[407701568,1772691031692,-250.0,0.00019452,2]
[407701569,1772691031701,-300.0,0.00019452,2]
[407701570,1772691031711,-250.0,0.00019726,2]
[407701571,1772691031720,-2.0,0.00020249,2]
[407701572,1772691031741,-248.0,0.00020249,2]
[407701573,1772691031751,-350.0,0.00020274,2]
[407701574,1772691031761,-157.0,0.00020758,2]
[407701575,1772691031771,-1200.0,0.00020758,2]
[407701576,1772691031780,-333.0,0.00020758,2]
[407701577,1772691031790,-22640.74290781,0.00020759,2]
[407701578,1772691031800,-450.0,0.00020822,2]
[407701579,1772691031809,-250.0,0.00021096,2]
[407701580,1772691031819,-300.0,0.00021096,2]
[407701581,1772691031828,-2463.64215827,0.00021096,2]
[407701582,1772691031837,-158.21,0.00021228,2]
[407701583,1772691031847,-550.0,0.0002137,2]
[407701584,1772691031856,-650.0,0.00021918,2]
[407701585,1772691031866,-750.0,0.00022466,2]
[407701586,1772691031876,-158.21,0.00022555,2]
[407701587,1772691031886,-1464.0,0.00022693,2]
[407701588,1772691031896,-5000.0,0.00022834,2]
[407701589,1772691031907,-1137.14088206,0.00023,2]
[407701590,1772691031917,-850.0,0.00023014,2]
[407701591,1772691031926,-950.0,0.00023562,2]
[407701592,1772691031935,-1264.08263053,0.00023596,2]
[407701593,1772691031944,-500.0,0.00023695,2]
[407701600,1772691032080,-500.0,0.00023695,2]
[407701602,1772691032090,-500.0,0.00023695,2]
[407701604,1772691032099,-500.0,0.00023695,2]
[407701606,1772691032108,-500.0,0.00023695,2]
[407701608,1772691032118,-500.0,0.00023695,2]
[407701609,1772691032127,-500.0,0.00023695,2]
[407701610,1772691032136,-500.0,0.00023695,2]
[407701611,1772691032146,-500.0,0.00023695,2]
[407701612,1772691032155,-500.0,0.00023695,2]
[407701613,1772691032164,-238.92538752,0.00023695,2]
[407701614,1772691032173,-500.0,0.00023695,2]
[407701615,1772691032183,-500.0,0.00023695,2]
[407701616,1772691032192,-500.0,0.00023695,2]
[407701617,1772691032201,-500.0,0.00023695,2]
[407701618,1772691032210,-70981.0585675,0.00023696,2]
[407701619,1772691032220,-24344.05354427,0.00023696,2]
[407701620,1772691032231,-9947.99564774,0.00023696,2]
[407701621,1772691032242,-2784.57358505,0.00023696,2]
[407701622,1772691032253,-6949.62683833,0.00023696,2]
[407701623,1772691032268,-1014.1262929,0.00023696,2]
[407701624,1772691032280,-2454.25531392,0.00023696,2]
[407701625,1772691032291,-1000.0,0.00023696,2]
[407701626,1772691032303,-2463.64215827,0.00023696,2]
[407701647,1772691037794,-205.13,0.00021972,2]
[407701648,1772691037804,-1541.31184429,0.00023696,2]
[407701649,1772691037815,-4998.3036271,0.00023696,2]
[407701650,1772691037825,-31057.08739783,0.00023696,2]
[407701651,1772691037835,-151.0,0.00023696,2]
[407701652,1772691037843,-151.0,0.00023696,2]
[407701653,1772691037853,-151.0,0.00023696,2]
[407701654,1772691037862,-151.0,0.00023696,2]
[407701655,1772691037871,-158.21,0.00023882,2]
[407701656,1772691037880,-1050.0,0.0002411,2]
[407701657,1772691037890,-1009.92844711,0.00024658,2]
[407701658,1772691037899,-158.21,0.00025209,2]
[407701659,1772691037908,-1500.0,0.00025598,2]
[407701660,1772691037917,-158.21,0.00026535,2]
[407701661,1772691037927,-37679.25621307,0.00026633,2]
[407701662,1772691037938,-1197.00453497,0.00026633,2]
[407701663,1772691037948,-847.94022153,0.00026633,2]
[407701666,1772691040198,-31256.85759793,0.00026633,2]
[407701667,1772691040208,-57204.61027965,0.00026633,2]
[407701668,1772691040253,-26796.87553852,0.00026633,2]
[407701669,1772691040315,-4553.49043153,0.00026633,2]
[407701670,1772691040325,-500.0,0.00026633,2]
[407701671,1772691040334,-151.0,0.00026633,2]
[407701672,1772691040344,-151.0,0.00026633,2]
[407701673,1772691040354,-151.0,0.00026633,2]
[407701674,1772691040364,-242.398192,0.00026633,2]
[407701675,1772691040373,-500.0,0.00026907,2]
[407701676,1772691040382,-500.0,0.00027181,2]
[407701677,1772691040392,-200.0,0.00027297,2]
[407701678,1772691040401,-1264.08263048,0.00027497,2]
[407701679,1772691040411,-158.21,0.00027862,2]
[407701680,1772691040420,-1489.69765576,0.00029009,2]
[407701682,1772691040435,-449.495,0.00029009,2]
[407701691,1772691045197,-1953.09734424,0.00029009,2]
[407701692,1772691045207,-1377.1,0.00029009,2]
[407701693,1772691045218,-150.99,0.00029009,2]
[407701694,1772691045227,-3175.69,0.00029009,2]
[407701695,1772691045237,-158.21,0.00029189,2]
[407701696,1772691045246,-1030.46862838,0.0002956,2]
[407701697,1772691045255,-155.615,0.00029569,2]
[407701698,1772691045264,-3055.50819815,0.0002957,2]
[407701723,1772691045880,-3983.65,0.0002957,2]
[407701725,1772691066771,500.6635566,0.00016973,2]
[407701726,1772691069335,167.87481142,0.00016973,2]
[407701727,1772691069429,162.22889393,0.00016973,2]
[407701728,1772691069828,501.18552408,0.00016973,2]
[407701729,1772691071067,500.82219971,0.00016973,2]
[407701730,1772691071448,516.15323722,0.00016973,2]
[407701731,1772691072158,500.66159153,0.00016973,2]
[407701732,1772691073096,163.05497047,0.00016973,2]
[407701733,1772691073727,500.17118036,0.00016973,2]
[407701734,1772691073831,571.35562547,0.00016973,2]
[407701735,1772691073914,286.53567068,0.00016973,2]
[407701736,1772691074303,501.34937779,0.00016973,2]
[407701737,1772691075481,127.95336074,0.00016973,2]
[407701738,1772691075501,35.64411955,0.00016973,2]
[407701739,1772691076267,161.97671235,0.00016973,2]
[407701740,1772691076291,209.89151104,0.00016973,2]
[407701741,1772691076679,168.83055657,0.00016973,2]
[407701742,1772691076918,500.84612641,0.00016973,2]
[407701743,1772691077128,513.19025276,0.00016973,2]
[407701744,1772691129878,452.51,0.00016973,2]
[407701745,1772691139919,500.0,0.00012,2]
[407701746,1772691140426,500.0,0.00012,2]
[407701747,1772691141787,500.0,0.00012,2]
[407701748,1772691142250,551.79104878,0.00012,2]
[407701749,1772691147826,530.40989781,0.00012,2]
[407701750,1772691224007,150.0,0.00016873,2]
[407701751,1772691224297,152.29,0.0001679,2]
[407701752,1772691238144,-150.0,0.00017,2]
[407701753,1772691238172,-150.0,0.00017,2]
[407701754,1772691238200,-150.0,0.00017,2]
[407701755,1772691274086,154.46,0.0001679,2]
[407701756,1772691346975,150.0,0.000169,2]
[407701757,1772691470398,150.0,0.000169,2]
[407701758,1772691542887,500.96095128,0.00016973,2]
[407701759,1772691542956,500.84330545,0.00016973,2]
[407701760,1772691543181,502.37498593,0.00016973,2]
[407701761,1772691593946,167.36326225,0.000169,2]
[407701762,1772691603383,294.0,0.0001706,2]
[407701763,1772691607920,174.606786,7.945e-05,2]
[407701764,1772691634899,-154.46,0.0001706,2]
[407701765,1772691634922,-845.54,0.0001708,2]
[407701766,1772691666454,500.0,0.00016973,2]
[407701767,1772691742119,500.0,0.0001206,2]
[407701768,1772691742808,500.0,0.00012,2]